bitfinex/quotes_BTCUSD_20240911
["timestamp","ask_amount","ask_price","bid_price","bid_amount"]
[1726077045289,0.02788078,57961.0,57960.0,0.01724431]
[1726077045490,0.02788078,57961.0,57960.0,0.03124431]
[1726077045850,0.02788078,57961.0,57960.0,0.01724431]
[1726077046062,0.02788078,57961.0,57960.0,0.20077631]
[1726077046467,0.02788078,57961.0,57960.0,0.18677631]
[1726077046664,0.02788078,57961.0,57960.0,0.20077631]
[1726077047067,0.02788078,57961.0,57960.0,0.18677631]
[1726077047296,0.02788078,57961.0,57960.0,0.20077631]
[1726077047469,0.02788078,57961.0,57960.0,0.54584131]
[1726077047680,0.02788078,57961.0,57960.0,0.20077631]
[1726077048149,0.02788078,57961.0,57960.0,0.18977631]
[1726077048324,0.02888078,57961.0,57960.0,0.20377631]
[1726077048528,0.02888078,57961.0,57960.0,0.03124431]
[1726077048951,0.02888078,57961.0,57960.0,0.201708]
[1726077049152,0.02888078,57961.0,57960.0,0.2037764]
[1726077049591,0.02888078,57961.0,57960.0,0.0312444]
[1726077050260,0.02888078,57961.0,57960.0,0.2037764]
[1726077051069,0.02888078,57961.0,57960.0,0.5488414]
[1726077051501,0.02888078,57961.0,57960.0,0.8939064]
[1726077051747,0.00182,57961.0,57960.0,0.8939064]
[1726077052244,0.00182,57961.0,57960.0,1.3791714]
[1726077052972,0.00182,57961.0,57960.0,1.75334664]
[1726077053457,0.00182,57961.0,57960.0,1.4791714]
[1726077058528,0.00182,57961.0,57960.0,1.64097382]
[1726077059728,0.00132,57961.0,57960.0,1.64097382]
[1726077060845,0.00082,57961.0,57960.0,1.64097382]
[1726077061358,0.00082,57961.0,57960.0,1.91702019]
[1726077061593,0.00082,57961.0,57960.0,2.58914443]
[1726077061806,0.00082,57969.0,57968.0,0.251408]
[1726077062007,0.00082,57969.0,57968.0,1.1108098]
[1726077062248,0.00082,57969.0,57968.0,2.43265572]
[1726077062479,0.00082,57969.0,57968.0,2.53260572]
[1726077062696,0.00082,57969.0,57968.0,1.62962092]
[1726077062918,0.00082,57969.0,57968.0,0.22540856]
[1726077063131,0.00082,57969.0,57968.0,0.002028]
[1726077063333,0.00082,57969.0,57968.0,0.174536]
[1726077063547,0.00082,57969.0,57968.0,0.188536]
[1726077063766,0.00082,57969.0,57968.0,0.172508]
[1726077063983,0.00082,57969.0,57968.0,0.18840688]
[1726077064437,0.00082,57969.0,57968.0,1.26780177]
[1726077064697,0.00082,57969.0,57968.0,1.28180177]
[1726077064938,0.00082,57969.0,57968.0,1.26280177]
[1726077064939,0.0278762,57969.0,57968.0,1.26280177]
[1726077065167,0.0278762,57969.0,57968.0,1.41800177]
[1726077065635,0.0278762,57969.0,57968.0,1.76301877]
[1726077066385,0.0278762,57969.0,57968.0,1.82795195]
[1726077066623,0.0278762,57969.0,57968.0,1.79995195]
[1726077066855,0.0278762,57969.0,57968.0,1.76301877]
[1726077067097,0.0278762,57969.0,57968.0,1.80001877]
[1726077067353,0.0278762,57969.0,57968.0,1.77201877]
[1726077067602,0.0278762,57969.0,57968.0,0.53342388]
[1726077067825,0.0278762,57969.0,57968.0,0.89244088]
[1726077068073,0.0278762,57969.0,57968.0,0.87844088]
[1726077068293,0.0278762,57969.0,57968.0,0.876542]
[1726077068582,0.0278762,57969.0,57968.0,0.890542]
[1726077068832,0.0278762,57969.0,57968.0,1.0140992]
[1726077069042,0.0278762,57969.0,57968.0,0.890542]
[1726077069296,0.0278762,57969.0,57968.0,1.400559]
[1726077069526,0.0278762,57969.0,57968.0,1.386559]
[1726077069766,0.0278762,57969.0,57968.0,1.372559]
[1726077069999,0.0278762,57969.0,57968.0,1.400559]
[1726077070244,0.0278762,57969.0,57968.0,1.91368042]
[1726077070463,0.0278762,57969.0,57968.0,1.92768042]
[1726077070696,0.0278762,57969.0,57968.0,1.89968042]
[1726077071194,0.0278762,57969.0,57968.0,1.6335966]
[1726077071442,0.0278762,57969.0,57968.0,1.56866342]
[1726077071443,0.00082,57969.0,57968.0,1.56866342]
[1726077071924,0.00082,57969.0,57968.0,1.58266342]
[1726077072166,0.00082,57969.0,57968.0,1.52505342]
[1726077072407,0.00082,57969.0,57968.0,1.377559]
[1726077074044,0.00082,57969.0,57968.0,1.412169]
[1726077075581,0.00082,57969.0,57968.0,1.780186]
[1726077075823,0.00082,57969.0,57968.0,1.882186]
[1726077076964,0.02705303,57970.0,57969.0,0.547516]
[1726077077191,0.02705303,57970.0,57969.0,1.15515924]
[1726077077423,0.02705303,57970.0,57969.0,1.50017024]
[1726077077669,0.02705303,57970.0,57969.0,1.84518124]
[1726077078394,0.02705303,57970.0,57969.0,1.82218124]
[1726077078654,0.02705303,57970.0,57969.0,1.83618124]
[1726077079205,0.02705303,57970.0,57969.0,1.85018124]
[1726077079456,0.02705303,57970.0,57969.0,1.87318124]
[1726077079683,0.02705303,57970.0,57969.0,1.90318124]
[1726077080636,0.02705303,57970.0,57969.0,1.85018124]
[1726077080861,0.02705303,57970.0,57969.0,1.37056024]
[1726077081343,0.0644,57979.0,57978.0,0.172479]
[1726077081545,0.0644,57979.0,57978.0,0.517437]
[1726077082728,0.0644,57979.0,57978.0,0.876395]
[1726077082968,0.0644,57979.0,57978.0,0.531437]
[1726077083453,0.0644,57979.0,57978.0,0.014]
[1726077083685,0.0644,57979.0,57978.0,0.028]
[1726077084157,0.0644,57979.0,57978.0,0.200479]
[1726077084379,0.0038036,57981.0,57980.0,0.172473]
[1726077084597,0.0038036,57981.0,57980.0,0.517419]
[1726077085042,0.03085541,57981.0,57980.0,0.862365]
[1726077085455,0.03085541,57981.0,57980.0,0.876365]
[1726077085664,0.03085541,57981.0,57980.0,0.96740629]
[1726077085874,0.03085541,57981.0,57980.0,0.98140629]
[1726077086925,0.03085541,57981.0,57980.0,0.890365]
[1726077087807,0.03085541,57981.0,57980.0,0.545419]
[1726077088016,0.03085541,57981.0,57980.0,0.890365]
[1726077088227,0.03085541,57981.0,57980.0,0.545419]
[1726077088428,0.03085541,57981.0,57980.0,0.890365]
[1726077088628,0.03085541,57981.0,57980.0,0.545419]
[1726077089060,0.03085541,57981.0,57980.0,0.890365]
[1726077089254,0.03085541,57981.0,57980.0,1.0138984]
[1726077089662,0.03085541,57981.0,57980.0,0.890365]
[1726077090096,0.03085541,57981.0,57980.0,1.235311]
[1726077090411,0.03085541,57981.0,57980.0,0.890365]
[1726077091863,0.0038036,57981.0,57980.0,0.890365]
[1726077093663,0.0038036,57981.0,57980.0,0.545419]
[1726077094515,0.0038036,57981.0,57980.0,0.200473]
[1726077094715,0.4291436,57981.0,57980.0,0.028]
[1726077094930,0.6682136,57981.0,57980.0,0.028]
[1726077095123,0.3503248,57981.0,57980.0,0.028]
[1726077095342,0.6952648,57981.0,57980.0,0.028]
[1726077095538,0.3503248,57981.0,57980.0,0.028]
[1726077095742,1.0402048,57981.0,57980.0,0.028]
[1726077096003,1.38945689,57981.0,57980.0,0.028]
[1726077096616,1.38945689,57981.0,57980.0,0.014]
[1726077097298,1.945793,57981.0,57980.0,0.007]
[1726077097509,1.002727,57969.0,57968.0,0.00164]
[1726077097728,1.2019298,57969.0,57968.0,0.00164]
[1726077098156,1.22899008,57969.0,57968.0,0.00164]
[1726077098563,0.88397908,57969.0,57968.0,0.00164]
[1726077099539,0.36646308,57969.0,57968.0,0.00164]
[1726077099861,0.36646308,57969.0,57968.0,0.864182]
[1726077099862,0.02706028,57969.0,57968.0,0.864182]
[1726077100195,0.02706028,57969.0,57968.0,0.9506002]
[1726077100325,0.02706028,57969.0,57968.0,1.2956172]
[1726077100532,0.02806028,57969.0,57968.0,1.3036172]
[1726077100772,0.02806028,57969.0,57968.0,1.223199]
[1726077100934,0.02706028,57969.0,57968.0,1.5545018]
[1726077101141,0.0038036,57981.0,57980.0,0.862365]
[1726077101998,0.0038036,57981.0,57980.0,1.207311]
[1726077102327,0.0038036,57981.0,57980.0,1.347411]
[1726077102527,0.0058036,57981.0,57980.0,1.368411]
[1726077102729,0.0066236,57981.0,57980.0,1.368411]
[1726077103891,0.0066236,57981.0,57980.0,1.228311]
[1726077104116,0.0066236,57981.0,57980.0,0.883365]
[1726077104359,0.03367562,57981.0,57980.0,0.883365]
[1726077106030,0.03367562,57981.0,57980.0,1.0061981]
[1726077106279,0.03367562,57981.0,57980.0,0.538419]
[1726077106473,0.03367562,57981.0,57980.0,0.883365]
[1726077108059,0.03367562,57981.0,57980.0,1.228311]
[1726077109241,0.03267562,57981.0,57980.0,1.219311]
[1726077109719,0.03267562,57981.0,57980.0,1.564257]
[1726077109964,0.03267562,57981.0,57980.0,1.85995647]
[1726077110210,0.03167562,57981.0,57980.0,2.25128139]
[1726077110456,0.03167562,57981.0,57980.0,2.21419973]
[1726077111178,0.03167562,57981.0,57980.0,2.25372501]
[1726077111443,0.03167562,57981.0,57980.0,1.75757954]
[1726077111700,0.03167562,57981.0,57980.0,1.65547844]
[1726077111969,0.0046236,57981.0,57980.0,1.75755162]
[1726077112175,0.0046236,57981.0,57980.0,1.7320411]
[1726077112575,0.0046236,57981.0,57980.0,1.45637366]
[1726077113595,0.0046236,57981.0,57980.0,1.379811]
[1726077113903,0.0046236,57981.0,57980.0,1.63254321]
[1726077114119,0.0046236,57981.0,57980.0,1.42836979]
[1726077114409,0.0046236,57981.0,57980.0,1.44236979]
[1726077114619,0.0046236,57981.0,57980.0,1.73288024]
[1726077114858,0.0046236,57981.0,57980.0,1.80031579]
[1726077115079,0.0046236,57981.0,57980.0,1.78731579]
[1726077115332,0.0046236,57981.0,57980.0,1.63417934]
[1726077115582,0.0046236,57981.0,57980.0,1.83349829]
[1726077115837,0.0046236,57981.0,57980.0,1.55762055]
[1726077116081,0.0046236,57981.0,57980.0,1.63417731]
[1726077116338,0.0046236,57981.0,57980.0,2.254931]
[1726077116584,0.0046236,57981.0,57980.0,1.55762055]
[1726077116819,0.0046236,57981.0,57980.0,1.381451]
[1726077117052,0.0046236,57981.0,57980.0,1.45800776]
[1726077117533,0.0046236,57981.0,57980.0,1.43248451]
[1726077119693,0.0046236,57981.0,57980.0,1.77743051]
[1726077119924,0.0046236,57981.0,57980.0,1.726397]
[1726077120189,0.0046236,57981.0,57980.0,1.381451]
[1726077120956,0.0046236,57981.0,57980.0,1.236951]
[1726077121225,0.0046236,57981.0,57980.0,1.41312055]
[1726077121956,0.0046236,57981.0,57980.0,1.28796568]
[1726077122159,0.0046236,57981.0,57980.0,0.892005]
[1726077122805,0.0046236,57981.0,57980.0,0.547059]
[1726077123015,0.0046236,57981.0,57980.0,0.02964]
[1726077123016,0.1770936,57981.0,57980.0,0.02964]
[1726077123225,0.0046236,57981.0,57980.0,0.02964]
[1726077123434,0.1770936,57981.0,57980.0,0.02964]
[1726077123859,0.9470736,57981.0,57980.0,0.02964]
[1726077124286,0.80142695,57981.0,57980.0,0.00164]
[1726077124504,0.2571936,57981.0,57980.0,0.01864]
[1726077124762,0.80142695,57981.0,57980.0,0.00964]
[1726077124973,0.82848128,57981.0,57980.0,0.00964]
[1726077125179,0.82848128,57981.0,57980.0,0.00164]
[1726077125392,0.8282737,57981.0,57980.0,0.00664]
[1726077125576,1.1742137,57981.0,57980.0,0.00664]
[1726077125854,1.2395137,57981.0,57980.0,0.00664]
[1726077126058,1.5644537,57981.0,57980.0,0.00664]
[1726077126678,1.6644537,57981.0,57980.0,0.00164]
[1726077126848,1.6634537,57981.0,57980.0,0.00164]
[1726077127088,1.6644537,57981.0,57980.0,0.00864]
[1726077127296,1.6954537,57981.0,57980.0,0.01764]
[1726077127530,1.6954537,57981.0,57980.0,0.00164]
[1726077127531,2.0403937,57981.0,57980.0,0.00164]
[1726077127745,2.0403937,57981.0,57968.0,0.00164]
[1726077127746,0.862527,57969.0,57968.0,0.00164]
[1726077128019,1.49383135,57969.0,57968.0,0.00164]
[1726077128244,2.04983494,57969.0,57968.0,0.00164]
[1726077128453,2.04983494,57969.0,57960.0,0.00106]
[1726077128454,1.377706,57961.0,57960.0,0.00106]
[1726077128664,2.05982895,57961.0,57960.0,0.00106]
[1726077128874,0.77806035,57941.0,57940.0,0.00164]
[1726077129081,1.20043835,57941.0,57940.0,0.00164]
[1726077129285,0.85526035,57941.0,57940.0,0.00164]
[1726077129494,1.20043835,57941.0,57940.0,0.00164]
[1726077129916,1.22751123,57941.0,57940.0,0.00164]
[1726077130126,1.57268923,57941.0,57940.0,0.00164]
[1726077130340,1.25751123,57941.0,57940.0,0.00164]
[1726077130551,0.88233323,57941.0,57940.0,0.00164]
[1726077131415,0.36456623,57941.0,57940.0,0.00164]
[1726077131624,0.065,57947.0,57940.0,0.346824]
[1726077131835,0.19929335,57949.0,57945.0,0.172576]
[1726077132116,0.19929335,57949.0,57945.0,0.172577]
[1726077132278,0.345087,57957.0,57942.0,0.345172]
[1726077132279,0.172546,57956.0,57942.0,0.0775]
[1726077132493,0.27428112,57956.0,57942.0,0.0775]
[1726077132919,0.172549,57955.0,57949.0,0.172564]
[1726077133121,0.237538,57958.0,57952.0,0.172555]
[1726077133327,0.237538,57958.0,57947.0,0.345139]
[1726077133328,0.065,57958.0,57947.0,0.345139]
[1726077133535,0.065,57958.0,57943.0,0.345163]
[1726077133536,0.172547,57955.0,57943.0,0.345163]
[1726077133741,0.17686403,57954.0,57947.0,0.345142]
[1726077133938,0.17255,57954.0,57949.0,0.172564]
[1726077134229,0.172553,57953.0,57948.0,0.172568]
[1726077134745,0.345083,57957.0,57949.0,0.172565]
[1726077134746,0.173548,57955.0,57949.0,0.172565]
[1726077134978,0.173548,57955.0,57952.0,0.172555]
[1726077134979,0.002,57955.0,57952.0,0.172555]
[1726077135210,0.001,57955.0,57950.0,0.172559]
[1726077135452,0.001,57953.0,57951.0,0.172559]
[1726077135691,0.001,57953.0,57948.0,0.353135]
[1726077135963,0.19961622,57954.0,57949.0,0.172562]
[1726077136433,0.02706522,57954.0,57948.0,0.172568]
[1726077136673,0.00431428,57953.0,57938.0,0.3506366]
[1726077136905,0.172569,57948.0,57941.0,0.345176]
[1726077137147,0.172557,57952.0,57940.0,0.04440766]
[1726077137417,0.3563954,57953.0,57948.0,0.009]
[1726077137418,0.172561,57951.0,57948.0,0.009]
[1726077137647,0.02706774,57950.0,57948.0,0.009]
[1726077137923,0.02706774,57950.0,57949.0,0.01]
[1726077138167,0.02706774,57950.0,57948.0,0.172567]
[1726077138400,0.02706774,57950.0,57941.0,0.014]
[1726077138644,0.02706774,57950.0,57940.0,0.185231]
[1726077138645,0.08271489,57949.0,57940.0,0.185231]
[1726077138867,0.08271489,57949.0,57940.0,0.174231]
[1726077139094,0.12112127,57949.0,57948.0,0.01]
[1726077139304,0.45699601,57949.0,57948.0,0.01]
[1726077139510,0.51890302,57949.0,57948.0,0.01]
[1726077139747,0.57190302,57949.0,57948.0,0.023]
[1726077139979,1.5008271,57949.0,57948.0,0.023]
[1726077140199,1.78186102,57949.0,57948.0,0.023]
[1726077140421,2.12699202,57949.0,57948.0,0.013]
[1726077140643,2.18799202,57949.0,57948.0,0.013]
[1726077140868,2.36416157,57949.0,57948.0,0.013]
[1726077141096,2.36416157,57949.0,57940.0,0.01464]
[1726077141097,1.238123,57941.0,57940.0,0.01464]
[1726077141330,1.238123,57941.0,57940.0,0.01564]
[1726077141331,1.65271113,57941.0,57940.0,0.01564]
[1726077141547,1.75271113,57941.0,57940.0,0.01564]
[1726077141773,1.77978649,57941.0,57940.0,0.00164]
[1726077141999,2.32413404,57941.0,57940.0,0.00164]
[1726077142228,2.29905868,57941.0,57940.0,0.00164]
[1726077142455,0.2596,57939.0,57938.0,0.0054436]
[1726077142721,0.2596,57939.0,57920.0,0.0038036]
[1726077142722,0.92971513,57923.0,57920.0,0.0038036]
[1726077142968,1.27500013,57923.0,57922.0,0.00354741]
[1726077143202,1.27500013,57923.0,57922.0,0.001638]
[1726077143910,0.347237,57932.0,57922.0,0.001638]
[1726077143911,0.41788813,57928.0,57922.0,0.001638]
[1726077144129,0.345237,57932.0,57922.0,0.001638]
[1726077144348,0.27438813,57928.0,57923.0,0.00203562]
[1726077144578,0.00431649,57927.0,57923.0,0.00203562]
[1726077144870,0.1435,57926.0,57922.0,0.001638]
[1726077145132,1.13760013,57923.0,57922.0,0.001638]
[1726077145360,1.208497,57923.0,57922.0,0.012638]
[1726077145617,1.48288513,57923.0,57922.0,0.002638]
[1726077145847,1.48288513,57923.0,57920.0,0.0038036]
[1726077145848,0.115,57922.0,57920.0,0.0038036]
[1726077146116,1.49388773,57922.0,57920.0,0.0038036]
[1726077146337,1.88190536,57922.0,57920.0,0.0038036]
[1726077147134,1.83717873,57922.0,57920.0,0.0038036]
[1726077148082,1.88190536,57922.0,57920.0,0.0038036]
[1726077148814,1.42583554,57922.0,57920.0,0.0038036]
[1726077149059,1.27693267,57922.0,57920.0,0.0038036]
[1726077149562,1.62522367,57922.0,57920.0,0.0038036]
[1726077149814,1.62222367,57922.0,57920.0,0.0038036]
[1726077150060,1.62422367,57922.0,57920.0,0.0038036]
[1726077150289,1.79539322,57922.0,57920.0,0.0038036]
[1726077150533,1.45510222,57922.0,57920.0,0.0038036]
[1726077150769,1.88339322,57922.0,57920.0,0.0038036]
[1726077151004,1.87839322,57922.0,57920.0,0.0038036]
[1726077151551,2.22168422,57922.0,57921.0,0.002638]
[1726077151752,2.22205301,57922.0,57921.0,0.005638]
[1726077151954,2.22405301,57922.0,57921.0,0.004638]
[1726077152188,2.22805301,57922.0,57921.0,0.001638]
[1726077152429,2.23105301,57922.0,57921.0,0.001638]
[1726077153043,1.33053392,57912.0,57911.0,0.00164]
[1726077153246,1.83788492,57912.0,57911.0,0.00164]
[1726077153446,2.18323592,57912.0,57911.0,0.00164]
[1726077153665,1.908479,57912.0,57911.0,0.00164]
[1726077153948,1.906479,57912.0,57911.0,0.00164]
[1726077154204,1.403028,57912.0,57911.0,0.00164]
[1726077154404,1.338728,57912.0,57911.0,0.00164]
[1726077154615,0.518026,57912.0,57911.0,0.00164]
[1726077154819,0.005,57912.0,57911.0,0.00164]
[1726077155258,0.02708647,57912.0,57911.0,0.176344]
[1726077155468,0.02708647,57912.0,57911.0,0.180344]
[1726077155679,0.19976147,57912.0,57911.0,0.007666]
[1726077155885,0.54511247,57912.0,57911.0,0.007666]
[1726077156304,0.54511247,57912.0,57911.0,0.00564]
[1726077156305,0.62709941,57912.0,57911.0,0.00564]
[1726077156515,0.19976147,57912.0,57911.0,0.00564]
[1726077156681,0.19976147,57912.0,57911.0,0.00164]
[1726077156897,0.62009692,57914.0,57911.0,0.003666]
[1726077157095,0.001,57912.0,57911.0,0.003666]
[1726077157255,0.173675,57912.0,57911.0,0.003666]
[1726077157462,0.001,57912.0,57911.0,0.003666]
[1726077157681,0.345351,57912.0,57911.0,0.003666]
[1726077157932,0.518026,57912.0,57911.0,0.003666]
[1726077158185,0.54511125,57912.0,57911.0,0.003666]
[1726077158508,0.02808525,57912.0,57911.0,0.00864]
[1726077158716,0.20076025,57912.0,57911.0,0.010666]
[1726077158944,0.02808525,57912.0,57911.0,0.010666]
[1726077159154,0.20076025,57912.0,57911.0,0.010666]
[1726077159796,0.20155244,57912.0,57911.0,0.010666]
[1726077160033,0.02887744,57912.0,57911.0,0.010666]
[1726077161211,0.02887744,57912.0,57911.0,0.183344]
[1726077161482,0.02887744,57912.0,57911.0,0.010666]
[1726077161724,0.20155244,57912.0,57911.0,0.00864]
[1726077161995,0.174675,57912.0,57911.0,0.01067811]
[1726077162483,0.520026,57912.0,57911.0,0.01067811]
[1726077163173,0.174675,57912.0,57911.0,0.01067811]
[1726077163878,0.520026,57912.0,57911.0,0.01067811]
[1726077164138,0.002,57912.0,57911.0,0.01067811]
[1726077164968,0.002,57912.0,57911.0,0.35603511]
[1726077165176,0.002,57912.0,57911.0,0.59251311]
[1726077165177,0.0015,57912.0,57911.0,0.59251311]
[1726077165385,0.0015,57912.0,57911.0,0.24715611]
[1726077165593,0.0015,57912.0,57911.0,1.11388772]
[1726077165812,0.0015,57912.0,57911.0,0.772614]
[1726077166015,0.0015,57912.0,57911.0,1.29268711]
[1726077166684,0.0015,57912.0,57911.0,0.94733011]
[1726077167342,0.0015,57912.0,57911.0,0.25661611]
[1726077168703,0.001,57912.0,57911.0,0.60197311]
[1726077168906,0.001,57912.0,57911.0,0.25661611]
[1726077169124,0.002,57912.0,57911.0,0.08493811]
[1726077169348,0.001,57912.0,57911.0,0.25761611]
[1726077169553,0.002,57912.0,57911.0,0.26561611]
[1726077170233,0.001,57912.0,57911.0,0.08493811]
[1726077170435,0.002,57912.0,57911.0,0.26561611]
[1726077170635,0.002,57912.0,57911.0,0.09293811]
[1726077171083,0.002,57912.0,57911.0,0.01103811]
[1726077171712,0.79910009,57912.0,57911.0,0.01103811]
[1726077171916,0.45374909,57912.0,57911.0,0.01103811]
[1726077172397,0.002,57912.0,57911.0,0.01103811]
[1726077172599,0.001,57912.0,57911.0,0.0029411]
[1726077173008,0.001,57912.0,57911.0,0.0059411]
[1726077173434,0.001,57912.0,57911.0,0.0149411]
[1726077173435,0.002,57912.0,57911.0,0.0149411]
[1726077173637,0.345334,57915.0,57911.0,0.0019411]
[1726077173847,0.001,57912.0,57911.0,0.1786181]
[1726077174049,0.002,57912.0,57911.0,0.0189411]
[1726077174271,0.001,57912.0,57911.0,0.0059411]
[1726077174489,0.172672,57913.0,57911.0,0.0019411]
[1726077174697,0.001,57912.0,57911.0,0.0149411]
[1726077175655,0.001,57912.0,57911.0,0.0289411]
[1726077176007,0.172672,57914.0,57911.0,0.0159411]
[1726077176208,0.172675,57912.0,57911.0,0.0269411]
[1726077176669,0.34534,57914.0,57911.0,0.0159411]
[1726077176862,0.001,57912.0,57911.0,0.0129411]
[1726077177109,0.173675,57912.0,57911.0,0.0129411]
[1726077177269,1.50020761,57912.0,57911.0,0.0265831]
[1726077177473,1.41377231,57912.0,57911.0,0.0265831]
[1726077177610,1.41277231,57912.0,57911.0,0.013642]
[1726077179039,1.41277231,57912.0,57911.0,0.027642]
[1726077179040,1.41477231,57912.0,57911.0,0.027642]
[1726077179470,1.06742131,57912.0,57911.0,0.001642]
[1726077179674,1.06310406,57912.0,57911.0,0.001642]
[1726077179841,1.06510406,57912.0,57911.0,0.021642]
[1726077180052,0.519026,57912.0,57911.0,0.011642]
[1726077180247,0.519026,57912.0,57911.0,0.001642]
[1726077180248,0.518026,57912.0,57911.0,0.001642]
[1726077180475,0.34532,57918.0,57911.0,0.083342]
[1726077180678,0.000821,57922.0,57912.0,0.345349]
[1726077180917,0.000821,57922.0,57912.0,0.00195635]
[1726077181151,0.000821,57922.0,57913.0,0.0797]
[1726077181356,0.000821,57922.0,57921.0,0.517945]
[1726077181561,0.000821,57922.0,57921.0,0.659045]
[1726077181978,0.000821,57922.0,57921.0,0.66117814]
[1726077182810,0.000821,57922.0,57921.0,0.66017814]
[1726077183241,0.001821,57922.0,57921.0,0.66017814]
[1726077183452,0.002821,57922.0,57921.0,0.31988114]
[1726077183867,0.002821,57922.0,57921.0,0.31488114]
[1726077183868,0.000821,57922.0,57921.0,0.31488114]
[1726077184082,0.002821,57922.0,57921.0,0.01613314]
[1726077184263,0.79522564,57922.0,57921.0,0.01613314]
[1726077184502,0.44893464,57922.0,57921.0,0.01113314]
[1726077184736,0.44993464,57922.0,57921.0,0.023]
[1726077185155,0.79522564,57922.0,57921.0,0.023]
[1726077185573,0.866048,57922.0,57921.0,0.023]
[1726077186214,0.519757,57922.0,57921.0,0.009]
[1726077186424,0.519757,57922.0,57913.0,0.0752]
[1726077186425,0.172652,57920.0,57913.0,0.0752]
[1726077186627,0.00431674,57919.0,57915.0,0.172665]
[1726077187005,0.172656,57919.0,57915.0,0.172665]
[1726077187209,0.345302,57921.0,57916.0,0.00190777]
[1726077187210,0.0043167,57918.0,57916.0,0.00190777]
[1726077187420,0.172651,57921.0,57917.0,0.172659]
[1726077187636,0.002821,57922.0,57921.0,0.517945]
[1726077187847,0.001821,57922.0,57921.0,0.601045]
[1726077188050,0.001821,57922.0,57921.0,0.94825014]
[1726077188253,0.001821,57922.0,57921.0,0.60295314]
[1726077188456,0.001821,57922.0,57921.0,0.25765614]
[1726077188659,0.001821,57922.0,57921.0,0.08500814]
[1726077188867,0.1919119,57922.0,57921.0,0.00190814]
[1726077189072,0.580157,57922.0,57921.0,0.00190814]
[1726077189286,0.172661,57917.0,57913.0,0.183671]
[1726077189493,0.172661,57917.0,57912.0,0.0624]
[1726077189494,0.345315,57919.0,57912.0,0.0624]
[1726077189717,0.172658,57918.0,57914.0,0.17456768]
[1726077189925,0.172658,57918.0,57917.0,0.012]
[1726077189926,0.517972,57918.0,57917.0,0.012]
[1726077190139,0.517972,57918.0,57915.0,0.01089968]
[1726077190341,0.345319,57918.0,57911.0,0.080342]
[1726077190542,0.001,57917.0,57913.0,0.012]
[1726077190749,0.172658,57918.0,57912.0,0.01007739]
[1726077190954,0.172658,57918.0,57914.0,0.00208345]
[1726077191163,0.173658,57918.0,57917.0,0.011]
[1726077191380,0.519973,57918.0,57917.0,0.011]
[1726077191590,0.172662,57917.0,57915.0,0.008]
[1726077191820,0.001,57918.0,57915.0,0.008]
[1726077192726,0.000821,57922.0,57912.0,0.0646]
[1726077192949,0.000821,57922.0,57913.0,0.0944582]
[1726077193150,0.001,57918.0,57914.0,0.009]
[1726077193542,0.001,57917.0,57915.0,0.00208345]
[1726077193748,0.000821,57922.0,57916.0,0.06735303]
[1726077193964,0.000821,57922.0,57921.0,0.517945]
[1726077193965,0.001821,57922.0,57921.0,0.517945]
[1726077194174,0.002821,57922.0,57921.0,1.0956574]
[1726077194378,0.002821,57922.0,57921.0,1.348239]
[1726077194379,0.000821,57922.0,57921.0,1.348239]
[1726077194583,0.000821,57922.0,57921.0,1.35013234]
[1726077195440,0.001821,57922.0,57921.0,1.36113234]
[1726077196332,0.002821,57922.0,57921.0,1.02483534]
[1726077196538,0.002821,57922.0,57921.0,1.12731887]
[1726077196758,0.002821,57922.0,57921.0,1.84708451]
[1726077197186,0.002821,57922.0,57921.0,2.19238151]
[1726077197410,0.002821,57922.0,57921.0,2.70187559]
[1726077197611,0.51989914,57943.0,57942.0,0.658358]
[1726077197821,0.51989914,57943.0,57942.0,1.0693658]
[1726077198037,0.34511,57953.0,57943.0,0.345164]
[1726077198264,0.06612,57954.0,57943.0,0.345164]
[1726077198472,0.172559,57951.0,57942.0,0.1406]
[1726077198674,0.06612,57954.0,57943.0,0.345166]
[1726077198877,0.199042,57949.0,57942.0,0.313185]
[1726077199094,0.172571,57947.0,57943.0,0.172582]
[1726077199334,0.172571,57947.0,57942.0,0.0753]
[1726077199550,0.004,57943.0,57942.0,0.248886]
[1726077199979,0.172571,57947.0,57943.0,0.172582]
[1726077200405,0.172571,57947.0,57943.0,0.171582]
[1726077201025,0.172571,57947.0,57942.0,0.1023]
[1726077201258,0.172575,57946.0,57942.0,0.0883]
[1726077201469,0.199042,57949.0,57945.0,0.172577]
[1726077201678,0.199042,57949.0,57944.0,0.345156]
[1726077201922,0.199042,57949.0,57946.0,0.172573]
[1726077202132,0.199042,57949.0,57946.0,0.345147]
[1726077202334,0.199042,57949.0,57947.0,0.17257]
[1726077202533,0.199042,57949.0,57948.0,0.172568]
[1726077202951,0.199042,57949.0,57946.0,0.345147]
[1726077203158,0.199042,57949.0,57947.0,0.17257]
[1726077203775,0.199042,57949.0,57946.0,0.185574]
[1726077203908,0.199042,57949.0,57947.0,0.17257]
[1726077204495,0.199042,57949.0,57947.0,0.18657]
[1726077204915,0.199042,57949.0,57947.0,0.014]
[1726077205512,0.199042,57949.0,57947.0,0.0639163]
[1726077205743,0.199042,57949.0,57948.0,0.0808]
[1726077206505,0.199042,57949.0,57948.0,0.1425]
[1726077207089,0.199042,57949.0,57948.0,0.1565]
[1726077207288,0.199042,57949.0,57948.0,0.1705]
[1726077207696,0.199042,57949.0,57948.0,1.378479]
[1726077207905,0.199042,57949.0,57948.0,1.033342]
[1726077208040,0.199042,57949.0,57948.0,1.019342]
[1726077208275,0.199042,57949.0,57948.0,1.033342]
[1726077208913,0.199042,57949.0,57948.0,0.688205]
[1726077209121,0.199042,57949.0,57948.0,0.674205]
[1726077209583,0.199042,57949.0,57948.0,0.267368]
[1726077209810,0.199042,57949.0,57948.0,0.281368]
[1726077210010,0.199042,57949.0,57948.0,0.626505]
[1726077210573,0.199042,57949.0,57948.0,0.200568]
[1726077211525,0.199042,57949.0,57948.0,0.545705]
[1726077211927,0.199042,57949.0,57948.0,0.6414514]
[1726077212155,0.199042,57949.0,57948.0,0.545705]
[1726077213021,0.199042,57949.0,57948.0,0.890842]
[1726077213233,0.199042,57949.0,57948.0,0.545705]